lending/lending_fUSD_20250425
["ID","MTS","AMOUNT","RATE_DAILY","PERIOD"]
[358972802,1745596255913,-500.0,0.00035616,2]
[358972804,1745596255922,-500.0,0.00035616,2]
[358972806,1745596255932,-849.18,0.00035616,2]
[358972808,1745596255941,-500.0,0.00035616,2]
[358972810,1745596255951,-1236.14,0.00035616,2]
[358972812,1745596255960,-500.0,0.00035616,2]
[358972814,1745596255969,-783.83,0.00035616,2]
[358972815,1745596255979,-500.0,0.00035616,2]
[358972818,1745596255989,-534.45303959,0.00035616,2]
[358972820,1745596255998,-500.0,0.00035616,2]
[358972821,1745596256008,-1114.4,0.00035616,2]
[358972823,1745596256017,-500.0,0.00035616,2]
[358972825,1745596256027,-995.26,0.00035616,2]
[358972827,1745596256036,-500.0,0.00035616,2]
[358972829,1745596256047,-987.33,0.00035616,2]
[358972832,1745596256056,-987.33,0.00035616,2]
[358972833,1745596256065,-987.33,0.00035616,2]
[358972835,1745596256076,-987.33,0.00035616,2]
[358972838,1745596256085,-566.09991193,0.00035616,2]
[358972840,1745596256095,-987.33,0.00035616,2]
[358972842,1745596256104,-987.33,0.00035616,2]
[358972843,1745596256113,-987.33,0.00035616,2]
[358972845,1745596256122,-987.33,0.00035616,2]
[358972848,1745596256132,-500.0,0.00035616,2]
[358972849,1745596256142,-987.33,0.00035616,2]
[358972852,1745596256151,-993.67,0.00035616,2]
[358972853,1745596256160,-500.0,0.00035616,2]
[358972856,1745596256170,-987.33,0.00035616,2]
[358972858,1745596256180,-500.00483233,0.00035616,2]
[358972860,1745596256190,-1045.52,0.00035616,2]
[358972862,1745596256199,-500.0,0.00035616,2]
[358972863,1745596256208,-519.88200471,0.00035616,2]
[358972865,1745596256217,-500.0,0.00035616,2]
[358972867,1745596256226,-500.0,0.00035616,2]
[358972869,1745596256236,-846.4,0.00035616,2]
[358972871,1745596256245,-500.0,0.00035616,2]
[358972873,1745596256255,-539.8,0.00035616,2]
[358972875,1745596256265,-500.0,0.00035616,2]
[358972878,1745596256274,-470.74523015,0.00035616,2]
[358972880,1745596256284,-500.0,0.00035616,2]
[358972882,1745596256294,-500.0,0.00035616,2]
[358972883,1745596256303,-500.0,0.00035616,2]
[358972886,1745596256313,-782.01,0.00035616,2]
[358972888,1745596256322,-238.12395404,0.00035616,2]
[358972890,1745596256332,-500.0,0.00035616,2]
[358972891,1745596256341,-500.0,0.00035616,2]
[358972892,1745596256351,-943.43,0.00035616,2]
[358972893,1745596256360,-1106.99,0.00035616,2]
[358972894,1745596256370,-500.0,0.00035616,2]
[358972895,1745596256380,-777.15,0.00035616,2]
[358972896,1745596256389,-500.0,0.00035616,2]
[358972897,1745596256399,-500.0,0.00035616,2]
[358972898,1745596256408,-500.0,0.00035616,2]
[358972899,1745596256418,-500.0,0.00035616,2]
[358972900,1745596256427,-500.0,0.00035616,2]
[358972901,1745596256438,-500.0,0.00035616,2]
[358972902,1745596256448,-1024.21,0.00035616,2]
[358972903,1745596256457,-500.0,0.00035616,2]
[358972905,1745596256467,-500.0,0.00035616,2]
[358972907,1745596256476,-500.0,0.00035616,2]
[358972909,1745596256486,-500.0,0.00035616,2]
[358972911,1745596256496,-654.22,0.00035616,2]
[358972913,1745596256506,-515.2579594,0.00035616,2]
[358972915,1745596256515,-500.0,0.00035616,2]
[358972917,1745596256527,-500.0,0.00035616,2]
[358972919,1745596256537,-14289.76,0.00035616,2]
[358972921,1745596256546,-771.64,0.00035616,2]
[358972923,1745596256555,-653.33,0.00035616,2]
[358972925,1745596256565,-1052.31,0.00035616,2]
[358972927,1745596256573,-500.0,0.00035616,2]
[358972929,1745596256583,-500.0,0.00035616,2]
[358972931,1745596256592,-500.0,0.00035616,2]
[358972933,1745596256602,-500.0,0.00035616,2]
[358972935,1745596256611,-508.6,0.00035616,2]
[358972937,1745596256621,-500.0,0.00035616,2]
[358972939,1745596256631,-500.0,0.00035616,2]
[358972941,1745596256640,-500.0,0.00035616,2]
[358972943,1745596256650,-500.0,0.00035616,2]
[358972945,1745596256660,-500.0,0.00035616,2]
[358972947,1745596256669,-500.0,0.00035616,2]
[358972949,1745596256680,-500.0,0.00035616,2]
[358972951,1745596256691,-500.0,0.00035616,2]
[358972953,1745596256701,-500.0,0.00035616,2]
[358972955,1745596256710,-500.0,0.00035616,2]
[358972957,1745596256719,-500.0,0.00035616,2]
[358972959,1745596256730,-542.03,0.00035616,2]
[358972961,1745596256739,-583.43344478,0.00035616,2]
[358972963,1745596256748,-500.0,0.00035616,2]
[358972965,1745596256758,-1187.16,0.00035616,2]
[358972967,1745596256769,-500.0,0.00035616,2]
[358972969,1745596256778,-500.0,0.00035616,2]
[358972971,1745596256788,-500.0,0.00035616,2]
[358972973,1745596256797,-557.66,0.00035616,2]
[358972975,1745596256807,-500.0,0.00035616,2]
[358972977,1745596256816,-500.0,0.00035616,2]
[358972979,1745596256825,-500.0,0.00035616,2]
[358972981,1745596256834,-500.0,0.00035616,2]
[358972983,1745596256844,-906.23,0.00035616,2]
[358972985,1745596256853,-500.0,0.00035616,2]
[358972987,1745596256863,-150.0,0.00035616,2]
[358972989,1745596256873,-593.39511984,0.00035616,2]
[358972991,1745596256882,-500.0,0.00035616,2]
[358972993,1745596256891,-500.0,0.00035616,2]
[358972995,1745596256901,-500.0,0.00035616,2]
[358972997,1745596256910,-670.74,0.00035616,2]
[358972999,1745596256919,-1045.74,0.00035616,2]
[358973001,1745596256930,-500.0,0.00035616,2]
[358973003,1745596256940,-500.0,0.00035616,2]
[358973005,1745596256949,-500.0,0.00035616,2]
[358973007,1745596256959,-500.0,0.00035616,2]
[358973009,1745596256968,-573.99910859,0.00035616,2]
[358973011,1745596256977,-1138.44,0.00035616,2]
[358973013,1745596256987,-500.0,0.00035616,2]
[358973015,1745596256997,-1818.74,0.00035616,2]
[358973017,1745596257006,-500.0,0.00035616,2]
[358973019,1745596257016,-150.0,0.00035616,2]
[358973021,1745596257025,-500.0,0.00035616,2]
[358973023,1745596257034,-500.0,0.00035616,2]
[358973025,1745596257043,-500.0,0.00035616,2]
[358973027,1745596257053,-1189.55,0.00035616,2]
[358973029,1745596257063,-766.4,0.00035616,2]
[358973031,1745596257072,-500.0,0.00035616,2]
[358973033,1745596257081,-672.15,0.00035616,2]
[358973035,1745596257091,-616.0,0.00035616,2]
[358973037,1745596257100,-932.79,0.00035616,2]
[358973039,1745596257110,-1208.07,0.00035616,2]
[358973041,1745596257120,-500.0,0.00035616,2]
[358973043,1745596257129,-500.0,0.00035616,2]
[358973045,1745596257138,-500.0,0.00035616,2]
[358973047,1745596257148,-889.96,0.00035616,2]
[358973049,1745596257157,-1170.9,0.00035616,2]
[358973051,1745596257166,-1114.87,0.00035616,2]
[358973053,1745596257176,-542.37,0.00035616,2]
[358973055,1745596257186,-500.0,0.00035616,2]
[358973056,1745596257196,-500.0,0.00035616,2]
[358973057,1745596257205,-1119.8,0.00035616,2]
[358973058,1745596257215,-500.0,0.00035616,2]
[358973059,1745596257224,-500.0,0.00035616,2]
[358973060,1745596257233,-500.0,0.00035616,2]
[358973061,1745596257243,-500.0,0.00035616,2]
[358973062,1745596257254,-500.0,0.00035616,2]
[358973063,1745596257264,-500.0,0.00035616,2]
[358973064,1745596257273,-500.0,0.00035616,2]
[358973065,1745596257282,-1775.25,0.00035616,2]
[358973066,1745596257292,-500.0,0.00035616,2]
[358973067,1745596257301,-586.09,0.00035616,2]
[358973068,1745596257311,-588.79,0.00035616,2]
[358973069,1745596257321,-823.83,0.00035616,2]
[358973070,1745596257331,-500.0,0.00035616,2]
[358973071,1745596257340,-500.0,0.00035616,2]
[358973072,1745596257350,-1646.08,0.00035616,2]
[358973073,1745596257359,-500.0,0.00035616,2]
[358973074,1745596257368,-500.0,0.00035616,2]
[358973076,1745596257378,-500.0,0.00035616,2]
[358973078,1745596257388,-500.0,0.00035616,2]
[358973080,1745596257397,-500.0,0.00035616,2]
[358973082,1745596257408,-1229.83,0.00035616,2]
[358973083,1745596257417,-500.0,0.00035616,2]
[358973085,1745596257427,-500.0,0.00035616,2]
[358973086,1745596257436,-200.0,0.00035616,2]
[358973087,1745596257446,-200.0,0.00035616,2]
[358973088,1745596257456,-200.0,0.00035616,2]
[358973089,1745596257466,-200.0,0.00035616,2]
[358973090,1745596257475,-200.0,0.00035616,2]
[358973091,1745596257484,-200.0,0.00035616,2]
[358973092,1745596257494,-200.0,0.00035616,2]
[358973093,1745596257503,-200.0,0.00035616,2]
[358973094,1745596257513,-200.0,0.00035616,2]
[358973095,1745596257522,-200.0,0.00035616,2]
[358973096,1745596257532,-200.0,0.00035616,2]
[358973097,1745596257542,-200.0,0.00035616,2]
[358973098,1745596257552,-200.0,0.00035616,2]
[358973099,1745596257562,-160.99538879,0.00035616,2]
[358973100,1745596257571,-1619.09152372,0.00035622,2]
[358973101,1745596257581,-987.33,0.00035624,2]
[358973102,1745596257590,-150.0,0.00035625,2]
[358973103,1745596257600,-150.0,0.00035628,2]
[358973104,1745596257612,-150.0,0.00035629,2]
[358973105,1745596257622,-168.99,0.00035634,2]
[358973106,1745596257631,-1048.58226988,0.00035644,7]
[358973107,1745596257641,-150.0,0.00035646,2]
[358973108,1745596257650,-150.0,0.00035651,2]
[358973109,1745596257660,-150.0,0.0003566,2]
[358973110,1745596257670,-150.0,0.00035662,2]
[358973111,1745596257679,-150.0,0.00035667,2]
[358973112,1745596257692,-150.0,0.00035669,2]
[358973113,1745596257701,-150.0,0.00035671,2]
[358973114,1745596257711,-150.0,0.00035671,2]
[358973115,1745596257720,-500.0,0.00035671,2]
[358973116,1745596257730,-150.0,0.00035671,2]
[358973117,1745596257740,-500.0,0.00035671,2]
[358973118,1745596257750,-150.0,0.00035671,2]
[358973119,1745596257759,-500.0,0.00035671,2]
[358973120,1745596257770,-616.0,0.00035671,2]
[358973121,1745596257780,-150.0,0.00035671,2]
[358973122,1745596257789,-500.0,0.00035673,5]
[358973123,1745596257798,-500.0,0.00035673,5]
[358973124,1745596257808,-500.0,0.00035673,3]
[358973125,1745596257818,-500.0,0.00035673,5]
[358973126,1745596257827,-396.06890757,0.00035673,5]
[358973127,1745596257837,-500.0,0.00035673,5]
[358973128,1745596257847,-500.0,0.00035673,5]
[358973129,1745596257857,-160.43394552,0.00035673,5]
[358973130,1745596257866,-152.89812849,0.00035673,5]
[358973131,1745596257876,-500.0,0.00035673,5]
[358973132,1745596257885,-500.0,0.00035673,5]
[358973133,1745596257894,-264.03629121,0.00035673,5]
[358973134,1745596257904,-1619.09152372,0.00035685,2]
[358973135,1745596257913,-218.09123678,0.00035688,2]
[358973136,1745596257923,-257.29795687,0.00035712,2]
[358973137,1745596257933,-500.0,0.00035715,2]
[358973138,1745596257942,-150.0,0.00035721,2]
[358973139,1745596257952,-150.0,0.00035726,2]
[358973140,1745596257961,-150.0,0.00035726,2]
[358973141,1745596257971,-500.0,0.00035726,2]
[358973142,1745596257980,-198.80359187,0.00035726,2]
[358973143,1745596257990,-232.80351939,0.00035726,2]
[358973144,1745596258000,-150.0,0.00035726,2]
[358973145,1745596258009,-166.0,0.00035726,2]
[358973146,1745596258019,-616.0,0.00035726,2]
[358973147,1745596258028,-150.0,0.00035727,2]
[358973148,1745596258037,-150.0,0.00035737,2]
[358973149,1745596258047,-150.0,0.00035741,2]
[358973150,1745596258057,-150.0,0.00035741,2]
[358973151,1745596258067,-1619.09152372,0.00035748,2]
[358973152,1745596258076,-151.0,0.0003575,7]
[358973153,1745596258349,-150.0,0.00035752,2]
[358973154,1745596258387,-150.0,0.00035754,2]
[358973155,1745596258398,-150.0,0.00035755,2]
[358973156,1745596258408,-150.0,0.00035757,2]
[358973157,1745596258418,-150.0,0.00035758,2]
[358973158,1745596258429,-150.0,0.00035765,2]
[358973159,1745596258439,-150.0,0.0003578,2]
[358973160,1745596258449,-150.0,0.0003578,2]
[358973161,1745596258458,-500.0,0.0003578,2]
[358973162,1745596258469,-150.0,0.0003578,2]
[358973163,1745596258478,-199.8929094,0.0003578,2]
[358973164,1745596258488,-616.0,0.0003578,2]
[358973165,1745596258498,-150.0,0.00035782,2]
[358973166,1745596258507,-10838.48076767,0.0003579,2]
[358973167,1745596258517,-187.85822439,0.0003579,2]
[358973168,1745596258527,-434.54878458,0.0003579,2]
[358973169,1745596258537,-150.0,0.00035791,2]
[358973170,1745596258546,-150.0,0.00035797,2]
[358973171,1745596258556,-150.0,0.00035797,2]
[358973172,1745596258566,-150.0,0.00035802,2]
[358973173,1745596258577,-150.0,0.00035806,2]
[358973174,1745596258587,-150.0,0.00035811,2]
[358973175,1745596258596,-1619.09152372,0.00035812,2]
[358973176,1745596258606,-150.0,0.00035812,2]
[358973177,1745596258616,-150.0,0.00035825,2]
[358973178,1745596258626,-150.0,0.00035832,2]
[358973179,1745596258636,-150.0,0.00035834,2]
[358973180,1745596258646,-150.0,0.00035835,2]
[358973181,1745596258656,-150.0,0.00035835,2]
[358973182,1745596258665,-299.54842546,0.00035835,2]
[358973183,1745596258675,-150.0,0.00035835,2]
[358973184,1745596258684,-616.0,0.00035835,2]
[358973185,1745596258697,-150.0,0.00035837,2]
[358973186,1745596258707,-150.0,0.00035838,2]
[358973187,1745596258716,-150.0,0.00035839,2]
[358973188,1745596258726,-150.0,0.00035839,2]
[358973189,1745596258737,-7513.7836424,0.00035839,2]
[358973190,1745596258747,-150.0,0.0003584,2]
[358973191,1745596258756,-150.0,0.0003584,2]
[358973192,1745596258767,-150.0,0.00035846,2]
[358973193,1745596258777,-150.0,0.00035846,2]
[358973194,1745596258788,-150.0,0.00035855,2]
[358973195,1745596258798,-150.0,0.00035855,2]
[358973196,1745596258808,-150.0,0.00035866,2]
[358973197,1745596258817,-1890.573165,0.00035866,2]
[358973198,1745596258827,-1565.3881627,0.00035866,2]
[358973199,1745596258836,-959.2059015,0.00035866,2]
[358973200,1745596258846,-500.0,0.00035873,5]
[358973201,1745596258856,-501.0364123,0.00035873,5]
[358973202,1745596258866,-500.0,0.00035873,5]
[358973203,1745596258875,-500.0,0.00035873,5]
[358973204,1745596258885,-500.0,0.00035873,5]
[358973205,1745596258895,-504.67151475,0.00035873,5]
[358973206,1745596258904,-500.0,0.00035873,5]
[358973207,1745596258914,-500.0,0.00035873,5]
[358973208,1745596258923,-500.0,0.00035873,5]
[358973209,1745596258933,-204.95430672,0.00035873,5]
[358973210,1745596258959,-500.0,0.00035873,5]
[358973211,1745596258969,-150.0,0.00035874,2]
[358973212,1745596258979,-1619.09152372,0.00035875,2]
[358973213,1745596258990,-150.0,0.00035885,2]
[358973214,1745596259000,-3926.1294884,0.00035888,2]
[358973215,1745596259010,-1169.3432711,0.00035888,2]
[358973216,1745596259021,-11771.0679801,0.00035888,2]
[358973217,1745596259031,-33555.606056,0.00035888,2]
[358973218,1745596259041,-5838.2491017,0.00035888,2]
[358973219,1745596259051,-30702.5441853,0.00035888,2]
[358973220,1745596259062,-500.0,0.00035889,10]
[358973221,1745596259072,-500.0,0.00035889,2]
[358973222,1745596259082,-500.0,0.00035889,2]
[358973223,1745596259092,-500.0,0.00035889,2]
[358973224,1745596259102,-500.0,0.00035889,2]
[358973225,1745596259112,-500.0,0.00035889,2]
[358973226,1745596259121,-500.0,0.00035889,2]
[358973227,1745596259131,-987.33,0.00035889,2]
[358973228,1745596259140,-987.33,0.00035889,2]
[358973229,1745596259150,-987.33,0.00035889,2]
[358973230,1745596259159,-987.33,0.00035889,2]
[358973231,1745596259168,-150.0,0.00035889,3]
[358973232,1745596259179,-150.0,0.00035889,3]
[358973233,1745596259189,-250.0,0.0003589,2]
[358973234,1745596259198,-250.0,0.0003589,2]
[358973235,1745596259208,-250.0,0.0003589,2]
[358973236,1745596259218,-616.0,0.0003589,2]
[358973237,1745596259228,-500.0,0.0003589,2]
[358973238,1745596259238,-1086.5,0.0003589,2]
[358973239,1745596259248,-151.0,0.0003589,7]
[358973240,1745596259257,-151.0,0.0003589,7]
[358973241,1745596259267,-151.0,0.0003589,7]
[358973242,1745596259277,-151.0,0.0003589,7]
[358973243,1745596259287,-151.098903,0.0003589,7]
[358973244,1745596259297,-151.0,0.0003589,7]
[358973245,1745596259307,-151.0,0.0003589,7]
[358973246,1745596259317,-604.126834,0.0003589,7]
[358973247,1745596259327,-604.126834,0.0003589,7]
[358973248,1745596259336,-604.126834,0.0003589,7]
[358973249,1745596259346,-151.0,0.0003589,7]
[358973250,1745596259356,-151.0,0.0003589,7]
[358973251,1745596259366,-151.0,0.0003589,7]
[358973252,1745596259376,-152.711773,0.0003589,7]
[358973253,1745596259386,-500.0,0.0003589,2]
[358973254,1745596259396,-567.35063336,0.0003589,2]
[358973255,1745596259406,-500.0,0.0003589,2]
[358973256,1745596259416,-247.72244,0.0003589,7]
[358973257,1745596259429,-151.0,0.0003589,7]
[358973258,1745596259440,-500.0,0.0003589,2]
[358973259,1745596259452,-500.0,0.0003589,2]
[358973260,1745596259463,-151.0,0.0003589,7]
[358973261,1745596259475,-500.0,0.0003589,2]
[358973262,1745596259487,-151.0,0.0003589,7]
[358973263,1745596259499,-151.0,0.0003589,7]
[358973264,1745596259511,-155.583641,0.0003589,7]
[358973265,1745596259522,-253.23952419,0.0003589,2]
[358973266,1745596259533,-500.0,0.0003589,2]
[358973267,1745596259545,-517.24453531,0.0003589,2]
[358973268,1745596259557,-500.0,0.0003589,2]
[358973269,1745596259568,-500.0,0.0003589,2]
[358973270,1745596259580,-500.0,0.0003589,2]
[358973271,1745596259592,-500.0,0.0003589,2]
[358973272,1745596259604,-500.0,0.0003589,2]
[358973273,1745596259616,-500.0,0.0003589,2]
[358973274,1745596259628,-500.0,0.0003589,2]
[358973275,1745596259640,-500.0,0.0003589,2]
[358973276,1745596259652,-500.0,0.0003589,2]
[358973277,1745596259664,-551.38411433,0.0003589,2]
[358973278,1745596259680,-500.0,0.0003589,2]
[358973279,1745596259696,-500.0,0.0003589,2]
[358973280,1745596259708,-500.0,0.0003589,2]
[358973281,1745596259724,-500.0,0.0003589,2]
[358973282,1745596259735,-500.0,0.0003589,2]
[358973283,1745596259746,-500.0,0.0003589,2]
[358973284,1745596259757,-553.98566313,0.0003589,2]
[358973285,1745596259768,-500.0,0.0003589,2]
[358973286,1745596259779,-500.0,0.0003589,2]
[358973287,1745596259790,-500.0,0.0003589,2]
[358973288,1745596259802,-500.0,0.0003589,2]
[358973289,1745596259813,-500.0,0.0003589,2]
[358973290,1745596259824,-504.17535787,0.0003589,2]
[358973291,1745596259842,-500.0,0.0003589,2]
[358973292,1745596259854,-1235.27,0.0003589,2]
[358973293,1745596259865,-512.47,0.0003589,2]
[358973294,1745596259877,-500.0,0.0003589,2]
[358973295,1745596259888,-500.0,0.0003589,2]
[358973296,1745596259899,-500.0,0.0003589,2]
[358973297,1745596259909,-500.0,0.0003589,2]
[358973298,1745596259920,-500.0,0.0003589,2]
[358973299,1745596259936,-500.0,0.0003589,2]
[358973300,1745596259947,-562.03593086,0.0003589,2]
[358973301,1745596259958,-500.0,0.0003589,2]
[358973302,1745596259969,-300.0,0.0003589,2]
[358973303,1745596259979,-500.0,0.0003589,2]
[358973304,1745596259989,-500.0,0.0003589,2]
[358973305,1745596260000,-500.0,0.0003589,2]
[358973306,1745596260010,-534.98,0.0003589,2]
[358973307,1745596260022,-498.19959998,0.0003589,2]
[358973308,1745596260033,-500.0,0.0003589,2]
[358973309,1745596260044,-500.0,0.0003589,2]
[358973310,1745596260054,-500.0,0.0003589,2]
[358973311,1745596260065,-901.79,0.0003589,2]
[358973312,1745596260076,-522.71781178,0.0003589,2]
[358973313,1745596260086,-500.0,0.0003589,2]
[358973314,1745596260096,-500.0,0.0003589,2]
[358973315,1745596260105,-544.86193925,0.0003589,2]
[358973316,1745596260115,-500.0,0.0003589,2]
[358973317,1745596260125,-510.43092909,0.0003589,2]
[358973318,1745596260135,-500.0,0.0003589,2]
[358973319,1745596260144,-500.0,0.0003589,2]
[358973320,1745596260154,-500.0,0.0003589,2]
[358973321,1745596260164,-500.0,0.0003589,2]
[358973322,1745596260179,-500.0,0.0003589,2]
[358973323,1745596260189,-500.0,0.0003589,2]
[358973324,1745596260200,-500.0,0.0003589,2]
[358973325,1745596260209,-500.0,0.0003589,2]
[358973326,1745596260220,-500.0,0.0003589,2]
[358973327,1745596260231,-500.0,0.0003589,2]
[358973328,1745596260242,-500.0,0.0003589,2]
[358973329,1745596260252,-500.0,0.0003589,2]
[358973330,1745596260263,-500.0,0.0003589,2]
[358973331,1745596260274,-500.0,0.0003589,2]
[358973332,1745596260289,-500.0,0.0003589,2]
[358973333,1745596260299,-500.0,0.0003589,2]
[358973334,1745596260311,-500.0,0.0003589,2]
[358973335,1745596260323,-500.0,0.0003589,2]
[358973336,1745596260335,-500.0,0.0003589,2]
[358973337,1745596260345,-500.0,0.0003589,2]
[358973338,1745596260355,-526.17,0.0003589,2]
[358973339,1745596260366,-948.3,0.0003589,2]
[358973340,1745596260376,-500.0,0.0003589,2]
[358973341,1745596260387,-500.0,0.0003589,2]
[358973342,1745596260397,-500.0,0.0003589,2]
[358973343,1745596260407,-520.7597961,0.0003589,2]
[358973344,1745596260417,-636.67,0.0003589,2]
[358973345,1745596260432,-500.0,0.0003589,2]
[358973346,1745596260442,-500.0,0.0003589,2]
[358973347,1745596260453,-763.89,0.0003589,2]
[358973348,1745596260463,-500.0,0.0003589,2]
[358973349,1745596260474,-500.0,0.0003589,2]
[358973350,1745596260484,-500.0,0.0003589,2]
[358973351,1745596260495,-500.0,0.0003589,2]
[358973352,1745596260506,-992.42,0.0003589,2]
[358973353,1745596260517,-992.42,0.0003589,2]
[358973354,1745596260527,-500.0,0.0003589,2]
[358973355,1745596260538,-500.0,0.0003589,2]
[358973356,1745596260548,-1567.43,0.0003589,2]
[358973357,1745596260559,-229.015322,0.0003589,2]
[358973358,1745596260569,-500.0,0.0003589,2]
[358973359,1745596260579,-534.49898687,0.0003589,2]
[358973360,1745596260589,-500.0,0.0003589,2]
[358973361,1745596260599,-567.72,0.0003589,2]
[358973362,1745596260610,-229.015322,0.0003589,2]
[358973363,1745596260620,-834.13,0.0003589,2]
[358973364,1745596260630,-600.76235216,0.0003589,2]
[358973365,1745596260641,-500.0,0.0003589,2]
[358973366,1745596260651,-500.0,0.0003589,2]
[358973367,1745596260661,-532.27204479,0.0003589,2]
[358973368,1745596260671,-1044.85,0.0003589,2]
[358973369,1745596260686,-500.0,0.0003589,2]
[358973370,1745596260698,-500.0,0.0003589,2]
[358973371,1745596260708,-500.0,0.0003589,2]
[358973372,1745596260718,-500.0,0.0003589,2]
[358973373,1745596260728,-500.0,0.0003589,2]
[358973374,1745596260739,-541.45093837,0.0003589,2]
[358973375,1745596260749,-500.0,0.0003589,2]
[358973376,1745596260760,-560.98789366,0.0003589,2]
[358973377,1745596260773,-697.21,0.0003589,2]
[358973378,1745596260784,-678.19,0.0003589,2]
[358973379,1745596260795,-179.531903,0.0003589,7]
[358973380,1745596260804,-500.0,0.0003589,2]
[358973381,1745596260814,-500.0,0.0003589,2]
[358973382,1745596260826,-500.0,0.0003589,2]
[358973383,1745596260835,-500.0,0.0003589,2]
[358973384,1745596260846,-500.0,0.0003589,2]
[358973385,1745596260869,-179.531903,0.0003589,7]
[358973386,1745596260880,-506.96209056,0.0003589,2]
[358973387,1745596260891,-500.0,0.0003589,2]
[358973388,1745596260902,-500.0,0.0003589,2]
[358973389,1745596260912,-500.0,0.0003589,2]
[358973390,1745596260923,-500.0,0.0003589,2]
[358973391,1745596260938,-500.0,0.0003589,2]
[358973392,1745596260948,-500.0,0.0003589,2]
[358973393,1745596260958,-302.43786364,0.0003589,2]
[358973394,1745596260969,-491.37452138,0.0003589,2]
[358973395,1745596260981,-500.0,0.0003589,2]
[358973396,1745596260992,-500.0,0.0003589,2]
[358973397,1745596261005,-500.0,0.0003589,2]
[358973398,1745596261015,-500.0,0.0003589,2]
[358973399,1745596261027,-552.18,0.0003589,2]
[358973400,1745596261037,-552.99123692,0.0003589,2]
[358973401,1745596261048,-1000.0,0.0003589,2]
[358973402,1745596261262,-500.0,0.0003589,2]
[358973403,1745596261272,-526.15712472,0.0003589,2]
[358973404,1745596261282,-500.0,0.0003589,2]
[358973405,1745596261292,-500.0,0.0003589,2]
[358973406,1745596261302,-204.34185198,0.0003589,2]
[358973407,1745596261311,-500.0,0.0003589,2]
[358973408,1745596261321,-1055.46,0.0003589,2]
[358973409,1745596261331,-500.0,0.0003589,2]
[358973410,1745596261341,-500.0,0.0003589,2]
[358973411,1745596261351,-500.0,0.0003589,2]
[358973412,1745596261360,-500.0,0.0003589,2]
[358973413,1745596261370,-500.0,0.0003589,2]
[358973414,1745596261380,-500.0,0.0003589,2]
[358973415,1745596261390,-500.0,0.0003589,2]
[358973416,1745596261399,-500.0,0.0003589,2]
[358973417,1745596261409,-249.37929844,0.0003589,2]
[358973418,1745596261420,-562.49340467,0.0003589,2]
[358973419,1745596261434,-500.0,0.0003589,2]
[358973420,1745596261445,-461.63209462,0.0003589,2]
[358973421,1745596261455,-500.0,0.0003589,2]
[358973422,1745596261466,-500.0,0.0003589,2]
[358973423,1745596261477,-500.0,0.0003589,2]
[358973424,1745596261487,-586.9990047,0.0003589,2]
[358973425,1745596261497,-500.0,0.0003589,2]
[358973426,1745596261507,-500.0,0.0003589,2]